fUSD/lending_fUSD_20240408
["ID","MTS","AMOUNT","RATE_DAILY","PERIOD"]
[321844660,1712562122631,-623.1,0.00020999,2]
[321844661,1712562122653,-500.0,0.00020999,2]
[321844662,1712562122676,-623.1,0.00020999,2]
[321844663,1712562122699,-500.0,0.00020999,2]
[321844664,1712562122722,-623.1,0.00020999,2]
[321844665,1712562122744,-500.0,0.00020999,2]
[321844666,1712562122766,-623.1,0.00020999,2]
[321844667,1712562122787,-623.1,0.00020999,2]
[321844668,1712562122809,-500.0,0.00020999,2]
[321844669,1712562122830,-623.1,0.00020999,2]
[321844670,1712562122853,-623.1,0.00020999,2]
[321844671,1712562122875,-623.1,0.00020999,2]
[321844672,1712562122898,-623.1,0.00020999,2]
[321844673,1712562122920,-623.1,0.00020999,2]
[321844674,1712562122941,-623.1,0.00020999,2]
[321844675,1712562122963,-500.0,0.00020999,2]
[321844676,1712562122985,-623.1,0.00020999,2]
[321844677,1712562123006,-500.0,0.00020999,2]
[321844678,1712562123027,-623.1,0.00020999,2]
[321844679,1712562123051,-500.0,0.00020999,2]
[321844680,1712562123074,-623.1,0.00020999,2]
[321844681,1712562123099,-500.0,0.00020999,2]
[321844682,1712562123121,-623.1,0.00020999,2]
[321844683,1712562123143,-500.0,0.00020999,2]
[321844684,1712562123164,-623.1,0.00020999,2]
[321844685,1712562123185,-442.65742495,0.00020999,2]
[321844686,1712562123207,-623.1,0.00020999,2]
[321844687,1712562123228,-623.1,0.00020999,2]
[321844688,1712562123250,-623.1,0.00020999,2]
[321844689,1712562123273,-623.15,0.00020999,2]
[321844690,1712562123296,-500.0,0.00020999,2]
[321844691,1712562123317,-500.0,0.00020999,2]
[321844692,1712562123338,-500.0,0.00020999,2]
[321844693,1712562123361,-500.0,0.00020999,2]
[321844694,1712562123383,-616.44362749,0.00020999,2]
[321844695,1712562123405,-500.0,0.00020999,2]
[321844696,1712562123427,-500.0,0.00020999,2]
[321844697,1712562123449,-500.0,0.00020999,2]
[321844698,1712562123470,-500.0,0.00020999,2]
[321844699,1712562123491,-500.0,0.00020999,2]
[321844700,1712562123512,-500.0,0.00020999,2]
[321844701,1712562123534,-500.0,0.00020999,2]
[321844702,1712562123555,-293.38,0.00020999,2]
[321844703,1712562123577,-500.0,0.00020999,2]
[321844704,1712562123605,-500.0,0.00020999,2]
[321844705,1712562123628,-500.0,0.00020999,2]
[321844706,1712562123651,-500.0,0.00020999,2]
[321844707,1712562123674,-500.0,0.00020999,2]
[321844708,1712562123696,-500.0,0.00020999,2]
[321844709,1712562123718,-500.0,0.00020999,2]
[321844710,1712562123741,-500.0,0.00020999,2]
[321844711,1712562123762,-500.0,0.00020999,2]
[321844712,1712562123783,-500.0,0.00020999,2]
[321844713,1712562123805,-500.0,0.00020999,2]
[321844714,1712562123827,-468.23402854,0.00020999,2]
[321844715,1712562123849,-500.0,0.00020999,2]
[321844716,1712562123870,-500.0,0.00020999,2]
[321844717,1712562123891,-500.0,0.00020999,2]
[321844718,1712562123912,-500.0,0.00020999,2]
[321844719,1712562123933,-500.0,0.00020999,2]
[321844720,1712562123955,-500.0,0.00020999,2]
[321844721,1712562123976,-500.0,0.00020999,2]
[321844722,1712562123997,-500.0,0.00020999,2]
[321844723,1712562124020,-500.0,0.00020999,2]
[321844724,1712562124041,-500.0,0.00020999,2]
[321844725,1712562124063,-500.0,0.00020999,2]
[321844726,1712562124086,-474.2,0.00020999,2]
[321844727,1712562124108,-500.0,0.00020999,2]
[321844728,1712562124128,-500.0,0.00020999,2]
[321844729,1712562124150,-500.0,0.00020999,2]
[321844730,1712562124173,-500.0,0.00020999,2]
[321844731,1712562124229,-500.0,0.00020999,2]
[321844732,1712562124251,-500.0,0.00020999,2]
[321844733,1712562124272,-500.0,0.00020999,2]
[321844734,1712562124293,-500.0,0.00020999,2]
[321844735,1712562124313,-500.0,0.00020999,2]
[321844736,1712562124335,-500.0,0.00020999,2]
[321844737,1712562124356,-500.0,0.00020999,2]
[321844738,1712562124377,-391.90915966,0.00020999,2]
[321844739,1712562124398,-500.0,0.00020999,2]
[321844740,1712562124419,-500.0,0.00020999,2]
[321844741,1712562124441,-500.0,0.00020999,2]
[321844742,1712562124463,-500.0,0.00020999,2]
[321844743,1712562124484,-500.0,0.00020999,2]
[321844744,1712562124505,-500.0,0.00020999,2]
[321844745,1712562124526,-500.0,0.00020999,2]
[321844746,1712562124546,-483.01,0.00020999,2]
[321844747,1712562124568,-500.0,0.00020999,2]
[321844748,1712562124589,-164.64797126,0.00020999,2]
[321844749,1712562124613,-500.0,0.00020999,2]
[321844750,1712562124634,-500.0,0.00020999,2]
[321844751,1712562124654,-527.29,0.00020999,2]
[321844752,1712562124677,-500.0,0.00020999,2]
[321844753,1712562124698,-500.0,0.00020999,2]
[321844754,1712562124719,-500.0,0.00020999,2]
[321844755,1712562124740,-500.0,0.00020999,2]
[321844756,1712562124760,-500.0,0.00020999,2]
[321844757,1712562124782,-500.0,0.00020999,2]
[321844758,1712562124803,-500.0,0.00020999,2]
[321844759,1712562124825,-500.0,0.00020999,2]
[321844760,1712562124846,-500.0,0.00020999,2]
[321844761,1712562124868,-500.0,0.00020999,2]
[321844762,1712562124890,-500.0,0.00020999,2]
[321844763,1712562124912,-500.0,0.00020999,2]
[321844764,1712562124933,-500.0,0.00020999,2]
[321844765,1712562124955,-564.53663453,0.00020999,2]
[321844766,1712562124977,-500.0,0.00020999,2]
[321844767,1712562124999,-500.0,0.00020999,2]
[321844768,1712562125020,-348.39402791,0.00020999,2]
[321844769,1712562125042,-500.0,0.00020999,2]
[321844770,1712562125067,-500.0,0.00020999,2]
[321844771,1712562125089,-500.0,0.00020999,2]
[321844772,1712562125113,-500.0,0.00020999,2]
[321844773,1712562125135,-526.72844876,0.00020999,2]
[321844774,1712562125157,-500.0,0.00020999,2]
[321844775,1712562125179,-500.0,0.00020999,2]
[321844776,1712562125200,-500.0,0.00020999,2]
[321844777,1712562125222,-500.0,0.00020999,2]
[321844778,1712562125243,-487.54,0.00020999,2]
[321844779,1712562125265,-500.0,0.00020999,2]
[321844780,1712562125287,-500.0,0.00020999,2]
[321844781,1712562125309,-500.0,0.00020999,2]
[321844782,1712562125331,-500.0,0.00020999,2]
[321844783,1712562125353,-500.0,0.00020999,2]
[321844784,1712562125379,-500.0,0.00020999,2]
[321844785,1712562125401,-500.0,0.00020999,2]
[321844786,1712562125423,-500.0,0.00020999,2]
[321844787,1712562125445,-500.0,0.00020999,2]
[321844788,1712562125466,-500.0,0.00020999,2]
[321844789,1712562125487,-500.0,0.00020999,2]
[321844790,1712562125508,-500.0,0.00020999,2]
[321844791,1712562125529,-500.0,0.00020999,2]
[321844792,1712562125562,-475.52,0.00020999,2]
[321844793,1712562125584,-500.0,0.00020999,2]
[321844794,1712562125607,-500.0,0.00020999,2]
[321844795,1712562125629,-500.0,0.00020999,2]
[321844796,1712562125653,-500.0,0.00020999,2]
[321844797,1712562125675,-500.0,0.00020999,2]
[321844798,1712562125698,-500.0,0.00020999,2]
[321844799,1712562125722,-260.1198525,0.00020999,2]
[321844800,1712562125746,-500.0,0.00020999,2]
[321844801,1712562125769,-500.0,0.00020999,2]
[321844802,1712562125792,-500.0,0.00020999,2]
[321844803,1712562125817,-500.0,0.00020999,2]
[321844804,1712562125845,-500.0,0.00020999,2]
[321844805,1712562125869,-500.0,0.00020999,2]
[321844806,1712562125892,-500.0,0.00020999,2]
[321844807,1712562125915,-500.0,0.00020999,2]
[321844808,1712562125938,-500.0,0.00020999,2]
[321844809,1712562125961,-2760.65,0.00020999,2]
[321844810,1712562125985,-500.0,0.00020999,2]
[321844811,1712562126007,-500.0,0.00020999,2]
[321844812,1712562126029,-2760.65,0.00020999,2]
[321844813,1712562126052,-2760.65,0.00020999,2]
[321844814,1712562126075,-500.0,0.00020999,2]
[321844815,1712562126099,-565.6,0.00020999,2]
[321844816,1712562126122,-2760.65,0.00020999,2]
[321844817,1712562126144,-2760.65,0.00020999,2]
[321844818,1712562126165,-2760.65,0.00020999,2]
[321844819,1712562126189,-2760.65,0.00020999,2]
[321844820,1712562126212,-2760.65,0.00020999,2]
[321844821,1712562126234,-2760.65,0.00020999,2]
[321844822,1712562126257,-2760.65,0.00020999,2]
[321844823,1712562126279,-2760.65,0.00020999,2]
[321844824,1712562126301,-2760.846152,0.00020999,2]
[321844825,1712562126323,-500.0,0.00020999,2]
[321844826,1712562126345,-500.0,0.00020999,2]
[321844827,1712562126367,-380.13948286,0.00020999,2]
[321844828,1712562126389,-500.0,0.00020999,2]
[321844829,1712562126411,-500.0,0.00020999,2]
[321844830,1712562126433,-500.0,0.00020999,2]
[321844831,1712562126456,-500.0,0.00020999,2]
[321844832,1712562126479,-500.0,0.00020999,2]
[321844833,1712562126502,-500.0,0.00020999,2]
[321844834,1712562126524,-500.0,0.00020999,2]
[321844835,1712562126547,-500.0,0.00020999,2]
[321844836,1712562126570,-500.0,0.00020999,2]
[321844837,1712562126592,-500.0,0.00020999,2]
[321844838,1712562126615,-500.0,0.00020999,2]
[321844839,1712562126638,-500.0,0.00020999,2]
[321844840,1712562126662,-240.8,0.00020999,2]
[321844841,1712562126686,-500.0,0.00020999,2]
[321844842,1712562126709,-500.0,0.00020999,2]
[321844843,1712562126732,-500.0,0.00020999,2]
[321844844,1712562126756,-500.0,0.00020999,2]
[321844845,1712562126779,-500.0,0.00020999,2]
[321844846,1712562126803,-500.0,0.00020999,2]
[321844847,1712562126826,-500.0,0.00020999,2]
[321844848,1712562126848,-500.0,0.00020999,2]
[321844849,1712562126872,-500.0,0.00020999,2]
[321844850,1712562126895,-500.0,0.00020999,2]
[321844851,1712562126917,-500.0,0.00020999,2]
[321844852,1712562126939,-500.0,0.00020999,2]
[321844853,1712562126962,-500.0,0.00020999,2]
[321844854,1712562126984,-500.0,0.00020999,2]
[321844855,1712562127007,-500.0,0.00020999,2]
[321844856,1712562127030,-500.0,0.00020999,2]
[321844857,1712562127063,-500.0,0.00020999,2]
[321844858,1712562127085,-500.0,0.00020999,2]
[321844859,1712562127113,-500.0,0.00020999,2]
[321844860,1712562127137,-500.0,0.00020999,2]
[321844861,1712562127161,-500.0,0.00020999,2]
[321844862,1712562127183,-500.0,0.00020999,2]
[321844863,1712562127206,-278.9,0.00020999,2]
[321844864,1712562127228,-500.0,0.00020999,2]
[321844865,1712562127252,-500.0,0.00020999,2]
[321844866,1712562127275,-500.0,0.00020999,2]
[321844867,1712562127298,-500.0,0.00020999,2]
[321844868,1712562127320,-500.0,0.00020999,2]
[321844869,1712562127342,-500.0,0.00020999,2]
[321844870,1712562127364,-500.0,0.00020999,2]
[321844871,1712562127386,-500.0,0.00020999,2]
[321844872,1712562127409,-500.0,0.00020999,2]
[321844873,1712562127431,-500.0,0.00020999,2]
[321844874,1712562127454,-500.0,0.00020999,2]
[321844875,1712562127477,-500.0,0.00020999,2]
[321844876,1712562127500,-500.0,0.00020999,2]
[321844877,1712562127523,-500.0,0.00020999,2]
[321844878,1712562127544,-500.0,0.00020999,2]
[321844879,1712562127586,-562.40149149,0.00020999,2]
[321844880,1712562127609,-500.0,0.00020999,2]
[321844881,1712562127632,-500.0,0.00020999,2]
[321844882,1712562127654,-500.0,0.00020999,2]
[321844883,1712562127678,-275.839542,0.00020999,2]
[321844884,1712562127700,-500.0,0.00020999,2]
[321844885,1712562127723,-224.49804554,0.00020999,2]
[321844886,1712562127746,-500.0,0.00020999,2]
[321844887,1712562127769,-500.0,0.00020999,2]
[321844888,1712562127791,-500.0,0.00020999,2]
[321844889,1712562127814,-500.0,0.00020999,2]
[321844890,1712562127836,-500.0,0.00020999,2]
[321844891,1712562127859,-500.0,0.00020999,2]
[321844892,1712562127884,-500.0,0.00020999,2]
[321844893,1712562127907,-500.0,0.00020999,2]
[321844894,1712562127930,-500.0,0.00020999,2]
[321844895,1712562127952,-500.0,0.00020999,2]
[321844896,1712562127975,-500.0,0.00020999,2]
[321844897,1712562127998,-500.0,0.00020999,2]
[321844898,1712562128021,-500.0,0.00020999,2]
[321844899,1712562128043,-637.08,0.00020999,2]
[321844900,1712562128087,-500.0,0.00020999,2]
[321844901,1712562128110,-500.0,0.00020999,2]
[321844902,1712562128133,-500.0,0.00020999,2]
[321844903,1712562128157,-500.0,0.00020999,2]
[321844904,1712562128180,-500.0,0.00020999,2]
[321844905,1712562128204,-500.0,0.00020999,2]
[321844906,1712562128227,-500.0,0.00020999,2]
[321844907,1712562128253,-507.92,0.00020999,2]
[321844908,1712562128277,-500.0,0.00020999,2]
[321844909,1712562128300,-500.0,0.00020999,2]
[321844910,1712562128323,-500.0,0.00020999,2]
[321844911,1712562128346,-500.0,0.00020999,2]
[321844912,1712562128368,-500.0,0.00020999,2]
[321844913,1712562128391,-500.0,0.00020999,2]
[321844914,1712562128413,-500.0,0.00020999,2]
[321844915,1712562128436,-500.0,0.00020999,2]
[321844916,1712562128458,-500.0,0.00020999,2]
[321844917,1712562128482,-500.0,0.00020999,2]
[321844918,1712562128506,-446.48,0.00020999,2]
[321844919,1712562128530,-500.0,0.00020999,2]
[321844920,1712562128568,-500.0,0.00020999,2]
[321844921,1712562128590,-500.0,0.00020999,2]
[321844922,1712562128613,-500.0,0.00020999,2]
[321844923,1712562128636,-500.0,0.00020999,2]
[321844924,1712562128659,-500.0,0.00020999,2]
[321844925,1712562128682,-546.08,0.00020999,2]
[321844926,1712562128705,-500.0,0.00020999,2]
[321844927,1712562128732,-500.0,0.00020999,2]
[321844928,1712562128755,-500.0,0.00020999,2]
[321844929,1712562128785,-500.0,0.00020999,2]
[321844930,1712562128811,-500.0,0.00020999,2]
[321844931,1712562128834,-500.0,0.00020999,2]
[321844932,1712562128858,-500.0,0.00020999,2]
[321844933,1712562128881,-500.0,0.00020999,2]
[321844934,1712562128904,-500.0,0.00020999,2]
[321844935,1712562128927,-358.77230302,0.00020999,2]
[321844936,1712562128951,-310.17641689,0.00020999,2]
[321844937,1712562128975,-335.88,0.00020999,2]
[321844938,1712562129000,-500.0,0.00020999,2]
[321844939,1712562129024,-500.0,0.00020999,2]
[321844940,1712562129047,-500.0,0.00020999,2]
[321844941,1712562129272,-500.0,0.00020999,2]
[321844942,1712562129296,-499.58500396,0.00020999,2]
[321844943,1712562129321,-500.0,0.00020999,2]
[321844944,1712562129344,-500.0,0.00020999,2]
[321844945,1712562129367,-500.0,0.00020999,2]
[321844946,1712562129391,-238.06911453,0.00020999,2]
[321844947,1712562129414,-500.0,0.00020999,2]
[321844948,1712562129437,-500.0,0.00020999,2]
[321844949,1712562129460,-500.0,0.00020999,2]
[321844950,1712562129483,-500.0,0.00020999,2]
[321844951,1712562129505,-500.0,0.00020999,2]
[321844952,1712562129527,-500.0,0.00020999,2]
[321844953,1712562129557,-500.0,0.00020999,2]
[321844954,1712562129587,-500.0,0.00020999,2]
[321844955,1712562129609,-500.0,0.00020999,2]
[321844956,1712562129665,-500.0,0.00020999,2]
[321844957,1712562129688,-500.0,0.00020999,2]
[321844958,1712562129710,-500.0,0.00020999,2]
[321844959,1712562129733,-500.0,0.00020999,2]
[321844960,1712562129755,-500.0,0.00020999,2]
[321844961,1712562129777,-500.0,0.00020999,2]
[321844962,1712562129800,-500.0,0.00020999,2]
[321844963,1712562129822,-500.0,0.00020999,2]
[321844964,1712562129844,-500.0,0.00020999,2]
[321844965,1712562129867,-500.0,0.00020999,2]
[321844966,1712562129893,-548.37,0.00020999,2]
[321844967,1712562129918,-175094.95416015,0.00021,2]
[321844968,1712562129940,-282.7980408,0.00021,2]
[321844969,1712562129962,-1141.894,0.00021,2]
[321844970,1712562129984,-354.0,0.00021,2]
[321844971,1712562130006,-214.0,0.00021,2]
[321844972,1712562130028,-1634211.26993471,0.00021,2]
[321844982,1712562361369,1000.0,0.00022,5]
[321845064,1712562631568,-500.0,0.0001803,2]
[321845065,1712562631577,-208.14023604,0.00018031,2]
[321845066,1712562631589,-200.73958561,0.00018031,2]
[321845067,1712562631598,-607.68289849,0.00018036,2]
[321845068,1712562631610,-392.31710151,0.00018036,2]
[321845069,1712562631619,-247.43,0.00018037,2]
[321845070,1712562631628,-993.96189299,0.00019,3]
[321845073,1712562632545,-756.03810701,0.00019,3]
[321845074,1712562632555,-247.01,0.00019962,2]
[321845075,1712562632564,-249.8363637,0.0002,2]
[321845076,1712562632576,-640.41816022,0.0002,2]
[321845077,1712562632586,-152.57986929,0.00020008,2]
[321845078,1712562632597,-111.70013071,0.00020008,2]
[321845079,1712562632606,-247.43,0.00020301,2]
[321845080,1712562632616,-4296.06942461,0.000207,2]
[321845081,1712562632627,-1360.0198,0.000207,2]
[321845082,1712562632643,-3532.85,0.000207,2]
[321845083,1712562632662,-4132.98347539,0.000207,2]
[321845084,1712562632671,-261.86384,0.0002079,2]
[321845085,1712562632682,-242.83121795,0.000208,2]
[321845086,1712562632691,-363.94382334,0.000208,2]
[321845087,1712562632700,-1296.647907,0.000208,2]
[321845088,1712562632712,-1225.352093,0.000208,2]
[321845089,1712562632722,-3650.67903855,0.000208,2]
[321845090,1712562632731,-242.83121787,0.00020811,2]
[321845091,1712562632741,-3650.6790385,0.00020811,2]
[321845092,1712562632750,-487.77945128,0.00020821,2]
[321845093,1712562632759,-500.0,0.00020821,2]
[321845095,1712562632769,-500.0,0.00020821,2]
[321845097,1712562632778,-194.98,0.00020821,2]
[321845099,1712562632787,-150.0,0.00020821,2]
[321845101,1712562632796,-338.83768769,0.00020821,2]
[321845103,1712562632806,-500.0,0.00020821,2]
[321845104,1712562632816,-500.0,0.00020821,2]
[321845105,1712562632825,-500.0,0.00020821,2]
[321845106,1712562632835,-500.0,0.00020821,2]
[321845107,1712562632844,-500.0,0.00020821,2]
[321845108,1712562632854,-500.0,0.00020821,2]
[321845109,1712562632863,-500.0,0.00020821,2]
[321845110,1712562632872,-578.3,0.00020821,2]
[321845111,1712562632881,-500.0,0.00020821,2]
[321845112,1712562632891,-500.0,0.00020821,2]
[321845113,1712562632900,-500.0,0.00020821,2]
[321845114,1712562632910,-500.0,0.00020821,2]
[321845115,1712562632921,-500.0,0.00020821,2]
[321845116,1712562632932,-500.0,0.00020821,2]
[321845117,1712562632941,-228.21526756,0.00020821,2]
[321845118,1712562632953,-271.78473244,0.00020821,2]
[321845119,1712562632963,-602.48,0.00020821,2]
[321845120,1712562632972,-500.0,0.00020821,2]
[321845121,1712562632981,-500.0,0.00020821,2]
[321845122,1712562632991,-460.95133237,0.00020821,2]
[321845123,1712562633000,-500.0,0.00020821,2]
[321845124,1712562633009,-500.0,0.00020821,2]
[321845125,1712562633018,-513.73528044,0.00020821,2]
[321845126,1712562633027,-500.0,0.00020821,2]
[321845127,1712562633035,-500.0,0.00020821,2]
[321845128,1712562633045,-518.78802553,0.00020821,2]
[321845129,1712562633054,-526.8148037,0.00020821,2]
[321845130,1712562633063,-516.17826373,0.00020821,2]
[321845131,1712562633072,-500.0,0.00020821,2]
[321845132,1712562633081,-513.02524976,0.00020821,2]
[321845133,1712562633091,-500.0,0.00020821,2]
[321845134,1712562633100,-514.02253181,0.00020821,2]
[321845135,1712562633109,-521.63522945,0.00020821,2]
[321845136,1712562633118,-519.50000147,0.00020821,2]
[321845137,1712562633127,-505.50191643,0.00020821,2]
[321845138,1712562633136,-505.61845214,0.00020821,2]
[321845139,1712562633145,-535.49326527,0.00020821,2]
[321845140,1712562633155,-511.3758137,0.00020821,2]
[321845141,1712562633168,-500.0,0.00020821,2]
[321845142,1712562633179,-621.55091426,0.00020821,2]
[321845143,1712562633188,-505.45386451,0.00020821,2]
[321845144,1712562633197,-500.0,0.00020821,2]
[321845145,1712562633209,-563.97244014,0.00020821,2]
[321845146,1712562633218,-552.99940006,0.00020821,2]
[321845147,1712562633227,-500.0,0.00020821,2]
[321845148,1712562633236,-536.27644778,0.00020821,2]
[321845149,1712562633245,-532.56449763,0.00020821,2]
[321845150,1712562633256,-520.49956759,0.00020821,2]
[321845151,1712562633265,-508.21952801,0.00020821,2]
[321845152,1712562633275,-500.0,0.00020821,2]
[321845153,1712562633284,-500.0,0.00020821,2]
[321845154,1712562633293,-508.62391059,0.00020821,2]
[321845155,1712562633302,-500.0,0.00020821,2]
[321845156,1712562633311,-423.84847023,0.00020821,2]
[321845157,1712562633320,-500.0,0.00020821,2]
[321845158,1712562633330,-188.38564716,0.00020821,2]
[321845159,1712562633341,-518.78820308,0.00020821,2]
[321845160,1712562633350,-521.26203938,0.00020821,2]
[321845161,1712562633359,-500.0,0.00020821,2]
[321845162,1712562633369,-566.65612729,0.00020821,2]
[321845163,1712562633378,-507.47142609,0.00020821,2]
[321845164,1712562633388,-500.0,0.00020821,2]
[321845165,1712562633397,-500.0,0.00020821,2]
[321845166,1712562633407,-500.0,0.00020821,2]
[321845168,1712562633416,-500.0,0.00020821,2]
[321845170,1712562633428,-500.0,0.00020821,2]
[321845172,1712562633438,-500.0,0.00020821,2]
[321845174,1712562633449,-500.0,0.00020821,2]
[321845176,1712562633459,-500.0,0.00020821,2]
[321845178,1712562633468,-500.0,0.00020821,2]
[321845180,1712562633478,-500.0,0.00020821,2]
[321845182,1712562633487,-500.0,0.00020821,2]
[321845184,1712562633497,-500.0,0.00020821,2]
[321845186,1712562633506,-500.0,0.00020821,2]
[321845188,1712562633515,-500.0,0.00020821,2]
[321845190,1712562633525,-500.0,0.00020821,2]
[321845193,1712562633535,-500.0,0.00020821,2]
[321845195,1712562633544,-500.0,0.00020821,2]
[321845197,1712562633554,-500.0,0.00020821,2]
[321845199,1712562633564,-500.0,0.00020821,2]
[321845201,1712562633574,-500.0,0.00020821,2]
[321845203,1712562633583,-500.0,0.00020821,2]
[321845205,1712562633593,-500.0,0.00020821,2]
[321845207,1712562633602,-500.0,0.00020821,2]
[321845228,1712562633807,-500.0,0.00020821,2]
[321845231,1712562633819,-500.0,0.00020821,2]
[321845233,1712562633829,-500.0,0.00020821,2]
[321845235,1712562633839,-500.0,0.00020821,2]
[321845237,1712562633848,-387.56,0.00020821,2]
[321845239,1712562633858,-500.0,0.00020821,2]
[321845241,1712562633868,-500.0,0.00020821,2]
[321845243,1712562633877,-502.57634271,0.00020821,2]
[321845244,1712562633886,-242.83121787,0.00020822,2]
[321845247,1712562633896,-3650.6790385,0.00020822,2]
[321845248,1712562633905,-363.94382334,0.00020825,2]
[321845251,1712562633915,-242.83121787,0.00020833,2]
[321845252,1712562633926,-3650.6790385,0.00020833,2]
[321845254,1712562633935,-242.83121787,0.00020844,2]
[321845257,1712562633946,-3650.6790385,0.00020844,2]
[321845258,1712562633955,-363.94382334,0.0002085,2]
[321845260,1712562633964,-242.83121787,0.00020856,2]
[321845262,1712562633974,-3650.6790385,0.00020856,2]
[321845264,1712562633983,-242.83121787,0.00020867,2]
[321845266,1712562633992,-3650.6790385,0.00020867,2]
[321845268,1712562634002,-363.94382334,0.00020875,2]
[321845271,1712562634011,-242.83121787,0.00020878,2]
[321845272,1712562634021,-3650.6790385,0.00020878,2]
[321845275,1712562634031,-242.83121787,0.00020889,2]
[321845277,1712562634041,-158.53,0.0002089,2]
[321845279,1712562634050,-500.0,0.00020897,2]
[321845280,1712562634059,-629.76507945,0.00020897,2]
[321845282,1712562634068,-647.52,0.00020897,2]
[321845284,1712562634078,-500.0,0.00020898,2]
[321845286,1712562634087,-500.0,0.00020898,2]
[321845288,1712562634096,-336.15,0.00020898,2]
[321845290,1712562634106,-156.10159272,0.00020898,2]
[321845292,1712562634116,-500.0,0.00020899,2]
[321845294,1712562634125,-225.54352497,0.00020899,2]
[321845296,1712562634134,-150.0,0.00020899,2]
[321845298,1712562634143,-500.0,0.00020899,2]
[321845300,1712562634153,-624.27,0.00020899,2]
[321845302,1712562634163,-500.0,0.00020899,2]
[321845304,1712562634173,-500.0,0.00020899,2]
[321845305,1712562634186,-365.5024668,0.00020899,2]
[321845306,1712562634202,-134.4975332,0.00020899,2]
[321845307,1712562634213,-300.14246678,0.00020899,2]
[321845681,1712562637749,-500.0,0.00020821,2]
[321845685,1712562637760,-3650.6790385,0.00020889,2]
[321845688,1712562637771,-199.85753322,0.00020899,2]
[321845691,1712562637781,-500.0,0.00020899,2]
[321845694,1712562637790,-500.0,0.00020899,2]
[321845697,1712562637800,-500.0,0.00020899,2]
[321845700,1712562637810,-248.13,0.00020899,2]
[321845703,1712562637819,-500.0,0.00020899,2]
[321845706,1712562637829,-466.10834188,0.00020899,2]
[321845710,1712562637847,-33.89165812,0.00020899,2]
[321845713,1712562637857,-500.0,0.00020899,2]
[321845716,1712562637866,-500.0,0.00020899,2]
[321845719,1712562637876,-500.0,0.00020899,2]
[321845721,1712562637886,-500.0,0.00020899,2]
[321845723,1712562637896,-500.0,0.00020899,2]
[321845725,1712562637905,-500.0,0.00020899,2]
[321845727,1712562637914,-500.0,0.00020899,2]
[321845729,1712562637924,-500.0,0.00020899,2]
[321845731,1712562637934,-348.76832688,0.00020899,2]
[321845733,1712562637945,-151.23167312,0.00020899,2]
[321845735,1712562637954,-445.78231435,0.00020899,2]
[321845737,1712562637964,-1234.82324082,0.000209,2]
[321845739,1712562637974,-6137.39727541,0.000209,2]
[321845741,1712562637986,-2570.63702074,0.000209,2]
[321845743,1712562637997,-6420.72836882,0.000209,2]
[321845746,1712562638009,-6115.99439703,0.000209,2]
[321845748,1712562638020,-184894.93211028,0.000209,2]
[321845750,1712562638033,-11314.40473144,0.000209,2]